bitfinex-derivatives/quotes_ETHF0:USTF0_20250205
["timestamp","ask_amount","ask_price","bid_price","bid_amount"]
[1738770575717,3.2078,2771.1,2770.7,0.00541301]
[1738770576710,3.9293,2771.1,2770.7,0.00541301]
[1738770576908,0.7215,2771.0,2770.7,0.00541301]
[1738770577112,3.2078,2771.1,2770.7,0.00541301]
[1738770577509,0.00541301,2771.2,2770.9,3.2078]
[1738770578218,0.00541301,2771.2,2770.7,0.00541301]
[1738770578812,0.72687301,2771.2,2770.7,0.00541301]
[1738770579006,0.00541301,2771.2,2770.7,0.00541301]
[1738770579212,0.00541301,2771.2,2770.8,3.2078]
[1738770579411,0.00541301,2771.2,2771.1,3.2078]
[1738770580821,0.00541301,2771.2,2770.8,0.5872]
[1738770581225,0.00541301,2771.2,2770.7,0.00541301]
[1738770583217,0.00541301,2771.2,2770.8,3.2078]
[1738770584019,0.00541301,2771.2,2770.7,0.00541301]
[1738770586328,0.72688301,2771.2,2770.7,0.00541301]
[1738770586524,0.72687301,2771.2,2770.7,0.00541301]
[1738770586724,0.00541301,2771.2,2770.7,0.00541301]
[1738770587227,0.72687301,2771.2,2770.7,0.00541301]
[1738770587819,3.35050708,2771.1,2770.7,0.00541301]
[1738770588026,3.35050708,2771.1,2770.2,3.2078]
[1738770588027,9.43890708,2771.1,2770.2,3.2078]
[1738770588220,3.35050708,2770.6,2769.8,3.2078]
[1738770588425,3.35050708,2770.1,2769.3,3.2078]
[1738770588627,0.72177,2770.0,2769.3,3.2078]
[1738770588824,7.28005708,2770.1,2769.3,3.2078]
[1738770589019,6.55830708,2770.1,2769.3,3.2078]
[1738770589231,6.55830708,2770.1,2769.4,0.00541301]
[1738770590230,7.13310708,2770.5,2769.9,3.2078]
[1738770590637,3.2078,2770.5,2770.0,4.61428885]
[1738770591529,1.0769,2771.1,2770.0,4.61428885]
[1738770591735,1.0769,2771.1,2770.3,3.2078]
[1738770593030,1.79839,2771.1,2770.3,3.2078]
[1738770593225,0.72151,2771.0,2770.0,3.2078]
[1738770593426,1.7984,2771.1,2770.0,3.2078]
[1738770593633,1.0769,2771.1,2770.3,3.2078]
[1738770593830,0.54021301,2771.2,2770.6,3.2078]
[1738770594340,0.54021301,2771.2,2770.7,3.2078]
[1738770595038,0.00541301,2771.2,2770.7,3.2078]
[1738770595434,0.00541301,2771.2,2770.8,4.7973557]
[1738770595629,0.00541301,2771.2,2770.7,3.2078]
[1738770597943,0.00541301,2771.2,2771.1,3.2078]
[1738770598241,0.00541301,2771.2,2770.8,3.2078]
[1738770598540,0.00541301,2771.2,2770.9,0.00541301]
[1738770599746,0.72687301,2771.2,2770.9,0.00541301]
[1738770600036,0.00541301,2771.2,2770.9,0.00541301]
[1738770600340,0.00541301,2771.2,2771.1,3.2078]
[1738770601342,3.2078,2772.5,2771.1,12.94342494]
[1738770601546,3.2078,2773.3,2772.4,3.2078]
[1738770602143,3.35050708,2772.9,2772.4,3.2078]
[1738770602340,3.35050708,2772.9,2771.8,3.2078]
[1738770602542,3.35592009,2772.9,2772.4,0.00541301]
[1738770602743,0.582,2772.8,2772.4,0.00541301]
[1738770602942,0.00541301,2772.9,2772.4,0.00541301]
[1738770603243,0.00541301,2772.9,2772.4,3.21321301]
[1738770603639,0.00541301,2772.9,2772.7,3.2078]
[1738770604647,0.00541301,2772.9,2772.8,4.74714023]
[1738770604846,3.2078,2773.9,2772.8,4.74714023]
[1738770605044,15.07193211,2774.0,2773.5,3.2078]
[1738770606043,15.07734512,2774.0,2773.5,3.2078]
[1738770606745,15.07734512,2774.0,2773.5,3.06493556]
[1738770606943,15.07734512,2774.0,2773.6,4.65971542]
[1738770607241,6.55830708,2773.7,2772.5,3.2078]
[1738770607447,0.5898,2773.6,2772.5,3.2078]
[1738770607642,1.7274,2773.6,2772.5,3.2078]
[1738770607844,0.72093,2773.2,2772.5,3.2078]
[1738770608044,4.9352,2773.6,2772.5,3.2078]
[1738770608244,1.7274,2773.6,2773.0,3.2078]
[1738770608450,0.5898,2773.6,2773.0,3.2078]
[1738770609250,0.5898,2773.6,2772.7,3.2078]
[1738770609251,1.31064,2773.6,2772.7,3.2078]
[1738770609848,0.5898,2773.6,2772.7,3.2078]
[1738770610344,0.5898,2773.6,2773.1,3.2078]
[1738770610548,3.2078,2773.5,2772.8,3.2078]
[1738770610950,0.5898,2773.6,2772.8,3.2078]
[1738770611346,3.35050708,2772.9,2771.5,3.2078]
[1738770611551,3.2078,2772.6,2771.2,3.2078]
[1738770611847,0.72115,2772.4,2771.5,3.2078]
[1738770612242,3.2078,2771.9,2771.5,3.2078]
[1738770613049,0.00541301,2772.0,2771.5,3.2078]
[1738770614249,3.2078,2773.1,2771.9,3.2078]
[1738770614547,3.35050708,2772.9,2771.9,3.2078]
[1738770614753,3.35050708,2772.5,2771.9,3.2078]
[1738770615051,3.2078,2772.3,2771.6,3.2078]
[1738770615247,2.705,2773.0,2771.9,0.00541301]
[1738770615248,3.2078,2772.6,2771.9,0.00541301]
[1738770615450,0.00541301,2772.5,2771.9,0.00541301]
[1738770615855,0.00541301,2772.5,2771.9,3.21321301]
[1738770616148,0.00541301,2772.5,2771.9,0.00541301]
[1738770616652,3.2078,2772.0,2771.9,0.00541301]
[1738770616847,3.2078,2772.0,2770.5,3.2078]
[1738770617047,3.2078,2771.2,2770.5,3.2078]
[1738770617248,3.2078,2771.2,2769.5,3.78030708]
[1738770617249,0.72157,2771.1,2770.0,3.2078]
[1738770617550,3.92933,2771.2,2770.0,3.2078]
[1738770617754,3.2078,2770.9,2769.6,5.25996222]
[1738770618053,3.2078,2770.6,2770.3,0.00541301]
[1738770619049,3.91370708,2770.8,2770.3,0.00541301]
[1738770619050,0.5632,2770.8,2770.3,0.00541301]
[1738770619249,0.00541301,2770.9,2770.3,0.00541301]
[1738770619554,0.00541301,2770.9,2770.4,4.65929958]
[1738770619748,0.00541301,2770.9,2770.3,0.00541301]
[1738770620255,0.00541301,2770.9,2770.4,7.9312155]
[1738770620643,0.00541301,2770.9,2770.4,3.2078]
[1738770620847,0.00541301,2770.9,2770.7,3.2078]
[1738770621046,3.2078,2770.8,2770.5,4.7234155]
[1738770621255,3.2078,2770.8,2770.3,0.00541301]
[1738770621256,3.35050708,2770.7,2770.3,0.00541301]
[1738770621458,3.2078,2770.5,2770.3,0.00541301]
[1738770623160,3.92945,2770.5,2770.3,0.00541301]
[1738770623361,3.2078,2770.5,2770.3,0.00541301]
[1738770623550,3.2078,2770.5,2769.8,3.2078]
[1738770623862,6.55830708,2769.9,2768.6,3.2078]
[1738770624055,3.2078,2769.3,2768.6,3.2078]
[1738770624255,3.2078,2769.5,2768.8,3.2078]
[1738770624862,0.72733301,2769.4,2768.9,0.00541301]
[1738770625061,0.00541301,2769.4,2768.9,0.00541301]
[1738770625861,4.07252708,2769.1,2768.9,0.00541301]
[1738770626056,0.536,2769.0,2768.9,0.00541301]
[1738770626250,0.536,2769.0,2767.7,3.50175685]
[1738770626456,0.536,2769.0,2768.5,3.2078]
[1738770626657,0.536,2769.0,2768.0,3.2078]
[1738770626863,0.72206,2768.9,2767.7,3.2078]
[1738770627065,0.536,2769.0,2767.7,3.2078]
[1738770627363,3.2078,2768.9,2767.8,4.77083826]
[1738770627658,3.2078,2768.9,2768.1,0.00541301]
[1738770628059,3.2078,2768.4,2768.1,0.00541301]
[1738770628972,0.5643,2768.6,2768.1,0.00541301]
[1738770629256,3.93003,2768.2,2767.2,3.2078]
[1738770629465,3.93016,2767.8,2767.2,3.2078]
[1738770629658,3.2078,2767.8,2767.2,3.2078]
[1738770630465,3.93014,2767.8,2767.2,3.2078]
[1738770630654,3.2078,2767.5,2767.2,0.0036087]
[1738770631160,3.21321301,2767.8,2767.2,0.0036087]
[1738770631869,0.00541301,2767.8,2767.2,3.2114087]
[1738770632160,0.00541301,2767.8,2767.2,0.0036087]
[1738770632762,3.2078,2767.4,2767.2,0.0036087]
[1738770632966,3.2078,2767.4,2767.0,5.421]
[1738770632967,3.2078,2767.4,2767.0,4.9925375]
[1738770633661,3.2078,2767.4,2758.2,5.07805764]
[1738770633662,0.72262,2766.8,2765.6,3.2078]
[1738770633969,0.7226,2766.8,2765.9,7.87463321]
[1738770634163,6.55830708,2767.1,2765.9,7.87463321]
[1738770634164,6.55830708,2767.1,2765.9,4.66683321]
[1738770634365,0.72255,2767.0,2765.6,3.2078]
[1738770634565,6.55830708,2767.1,2765.9,3.2078]
[1738770634868,3.2078,2766.8,2765.9,4.67067322]
[1738770635058,3.2078,2766.8,2765.7,3.2078]
[1738770635370,3.93041,2766.8,2765.7,3.2078]
[1738770635569,6.55830708,2767.1,2765.8,4.64089093]
[1738770636068,0.72256,2767.0,2765.8,4.64089093]
[1738770636264,6.55830708,2767.1,2765.8,4.64089093]
[1738770636565,0.72256,2767.0,2765.8,4.64089093]
[1738770636764,0.72255,2767.0,2765.8,4.64089093]
[1738770636966,3.2078,2766.8,2766.1,3.2078]
[1738770637268,3.2078,2766.8,2765.7,3.2078]
[1738770637269,0.72264,2766.7,2765.7,3.2078]
[1738770637470,3.2078,2766.8,2765.7,3.2078]
[1738770637769,3.9305,2766.5,2765.8,4.69903476]
[1738770638064,3.21321301,2766.5,2765.7,3.2078]
[1738770638371,0.72282,2766.0,2765.4,3.7769]
[1738770638668,0.72281,2766.0,2765.4,3.7769]
[1738770638863,0.72279,2766.1,2765.4,3.7769]
[1738770639063,3.35050708,2766.3,2765.4,3.7769]
[1738770639662,0.5602,2766.4,2765.7,3.2078]
[1738770639966,3.21321301,2766.5,2765.7,3.2078]
[1738770640374,0.00541301,2766.5,2766.3,3.2078]
[1738770640867,0.00541301,2766.5,2765.6,1.617]
[1738770640868,0.00541301,2766.5,2766.4,4.77476558]
[1738770641264,0.00541301,2766.5,2765.5,3.2078]
[1738770641468,3.2078,2766.1,2765.2,3.6382]
[1738770641668,3.2078,2766.1,2765.5,3.2078]
[1738770641971,3.2078,2765.9,2765.3,4.64101076]
[1738770642163,0.72278,2766.2,2765.2,0.4304]
[1738770642362,3.2078,2766.3,2765.4,7.91918369]
[1738770642568,0.72809301,2766.5,2765.4,4.71138369]
[1738770642569,3.2078,2765.5,2765.4,4.71138369]
[1738770642870,3.2078,2765.5,2764.8,3.2078]
[1738770643264,3.35050708,2765.8,2764.8,7.91918369]
[1738770643463,0.00542309,2765.4,2764.8,7.91918369]
[1738770643871,0.00542309,2765.4,2765.2,3.2078]
[1738770644760,0.00542309,2765.4,2765.3,0.5823]
[1738770646275,3.2078,2767.2,2765.3,13.7021913]
[1738770646467,3.35050708,2767.8,2766.7,3.2078]
[1738770646468,3.2078,2767.5,2766.7,3.2078]
[1738770646873,3.2078,2767.5,2766.4,3.2078]
[1738770647269,3.2078,2767.5,2766.0,0.4311]
[1738770647270,3.2078,2767.5,2766.7,3.2078]
[1738770647466,0.00542309,2767.2,2766.7,3.21322309]
[1738770648568,0.00542309,2767.2,2767.1,3.2078]
[1738770648972,0.00542309,2767.2,2766.8,4.2155]
[1738770649173,0.00542309,2767.2,2767.0,3.2078]
[1738770649673,0.00542309,2767.2,2766.7,0.00542309]
[1738770649674,3.2078,2767.1,2766.7,0.00542309]
[1738770650870,0.00542309,2767.2,2766.7,0.00542309]
[1738770651673,0.00542309,2767.2,2766.7,3.21322309]
[1738770652071,0.00542309,2767.2,2767.0,3.2078]
[1738770652974,0.00542309,2767.2,2766.8,3.2078]
[1738770653182,0.00542309,2767.2,2766.7,0.00542309]
[1738770654272,0.00542309,2767.2,2766.9,3.2078]
[1738770654671,0.00542309,2767.2,2767.0,4.74264752]
[1738770654877,3.2078,2767.1,2767.0,4.74264752]
[1738770655073,3.93034,2767.1,2766.7,0.00542309]
[1738770655271,3.2078,2766.8,2765.7,3.2078]
[1738770655469,3.2078,2766.4,2765.4,0.28702278]
[1738770655674,3.2078,2766.4,2765.2,3.2078]
[1738770655875,0.5689,2766.7,2765.6,3.2078]
[1738770656072,3.2078,2766.6,2765.9,3.2078]
[1738770656273,3.2078,2766.6,2765.6,3.2078]
[1738770656980,3.2078,2766.6,2765.7,4.63825319]
[1738770657377,0.5689,2766.7,2765.9,3.2078]
[1738770657880,3.7767,2766.7,2765.9,3.2078]
[1738770658273,3.7767,2766.7,2765.6,3.2078]
[1738770658681,0.72265,2766.6,2765.6,3.2078]
[1738770658876,3.7767,2766.7,2765.6,3.2078]
[1738770659290,3.93052,2766.4,2765.6,3.2078]
[1738770659581,0.5315,2766.3,2765.6,3.2078]
[1738770660384,3.2078,2766.7,2766.0,3.2078]
[1738770660976,0.5622,2767.0,2766.0,3.2078]
[1738770661179,3.7393,2767.3,2766.0,3.2078]
[1738770661381,0.72792309,2767.2,2766.0,3.2078]
[1738770661577,3.2078,2766.7,2766.0,3.2078]
[1738770661782,3.2078,2766.7,2766.1,3.2078]
[1738770662592,3.2078,2766.7,2765.7,0.9745]
[1738770662881,3.2078,2766.7,2765.9,3.2078]
[1738770663190,3.2078,2766.0,2765.0,3.2078]
[1738770663393,3.2078,2765.7,2765.0,3.2078]
[1738770663581,0.00542309,2765.8,2765.3,3.2078]
[1738770664783,0.00542309,2765.8,2765.4,4.65088218]
[1738770665482,0.00542309,2765.8,2765.6,3.2078]
[1738770665884,0.00542309,2765.8,2765.7,4.71444856]
[1738770666090,0.00542309,2765.8,2765.6,3.2078]
[1738770666688,0.00542309,2765.8,2765.7,4.69795544]
[1738770666984,0.00542309,2765.8,2765.6,3.2078]
[1738770668389,0.72296,2765.5,2765.0,3.2078]
[1738770668591,3.2078,2765.5,2765.0,3.2078]
[1738770669090,3.2078,2765.6,2765.0,3.2078]
[1738770669682,3.9308,2765.3,2764.5,3.7761]
[1738770669877,0.72304,2765.2,2764.5,3.2078]
[1738770670088,3.93081,2765.3,2764.5,3.2078]
[1738770670288,0.5325,2765.1,2764.5,3.2078]
[1738770670485,0.5325,2765.1,2764.2,3.2078]
[1738770670686,0.5325,2765.1,2763.8,17.34572407]
[1738770670888,3.2078,2764.7,2763.9,4.72311996]
[1738770671089,3.2078,2764.4,2763.5,3.2078]
[1738770671282,3.2078,2764.4,2763.0,0.5675]
[1738770671283,3.2078,2763.9,2762.7,3.2078]
[1738770671586,0.00542309,2763.6,2762.4,3.2078]
[1738770671784,0.00542309,2763.6,2762.4,3.5702]
[1738770671989,3.21322309,2763.6,2762.4,7.83875499]
[1738770672192,3.21322309,2763.6,2762.4,3.2078]
[1738770672387,3.21322309,2763.6,2763.0,3.2078]
[1738770672582,0.00542309,2763.6,2763.0,3.2078]
[1738770672785,0.00542309,2763.6,2763.1,4.74759298]
[1738770673093,0.00542309,2763.6,2762.7,3.2078]
[1738770673286,0.00542309,2763.6,2762.6,3.2078]
[1738770673687,0.00542309,2763.6,2762.7,4.64607277]
[1738770673886,0.00542309,2763.6,2763.3,3.2078]
[1738770674883,0.00542309,2763.6,2762.4,3.2078]
[1738770675083,0.00542309,2763.6,2762.7,3.2078]
[1738770675288,0.00542309,2763.6,2763.1,3.2078]
[1738770675489,0.00542309,2763.6,2762.8,3.2078]
[1738770675691,0.00542309,2763.6,2763.1,3.2078]
[1738770677092,0.00542309,2763.6,2763.3,3.2078]
[1738770677486,0.00542309,2763.6,2763.4,40.8]
[1738770677885,0.00542309,2763.6,2763.0,3.2078]
[1738770678287,0.00542309,2763.6,2763.1,45.5373078]
[1738770678497,0.00542309,2763.6,2763.1,46.0770078]
[1738770679495,0.00542309,2763.6,2763.1,5.2770078]
[1738770680089,0.00542309,2763.6,2763.3,3.2078]
[1738770680387,3.2078,2765.7,2763.5,1.80865]
[1738770680584,3.2078,2765.7,2764.9,3.2078]
[1738770680785,4.3007,2766.0,2765.0,3.2078]
[1738770681091,3.93069,2765.7,2764.3,3.2078]
[1738770681393,3.2078,2765.1,2764.7,0.00542309]
[1738770681591,0.72321,2764.5,2763.5,3.2078]
[1738770681897,6.55830708,2764.8,2763.5,3.2078]
[1738770681898,3.2078,2764.2,2763.5,3.2078]
[1738770682294,3.2078,2764.5,2763.5,3.2078]
[1738770682495,3.2078,2764.5,2763.6,4.63155072]
[1738770682693,6.55830708,2764.8,2763.6,4.63155072]
[1738770682898,3.93102,2764.5,2763.8,3.2078]
[1738770683095,3.2078,2764.5,2763.8,3.2078]
[1738770683289,6.55830708,2764.8,2763.5,3.2078]
[1738770683596,6.55830708,2764.8,2763.6,4.7260804]
[1738770683797,3.2078,2764.8,2763.8,3.2078]
[1738770683997,1.1057,2765.0,2763.8,3.2078]
[1738770684189,3.2078,2764.9,2763.9,4.7260804]
[1738770684396,3.93091,2764.9,2764.0,3.2078]
[1738770684593,3.35050708,2764.8,2764.0,3.2078]
[1738770684789,3.931,2764.6,2763.6,3.2078]
[1738770684993,3.2078,2764.6,2763.9,3.2078]
[1738770685196,1.1057,2765.0,2763.9,3.2078]
[1738770685391,1.1057,2765.0,2764.0,5.29842793]
[1738770685592,3.2078,2764.8,2764.0,0.5729]
[1738770686097,0.72315,2764.7,2763.9,3.2078]
[1738770686298,3.2078,2764.8,2763.9,3.2078]
[1738770686602,3.2078,2764.8,2764.0,4.64119538]
[1738770686899,3.21322309,2765.3,2764.3,3.2078]
[1738770687100,3.93623309,2765.3,2764.3,3.2078]
[1738770687301,3.2078,2765.0,2764.3,3.2078]
[1738770687502,0.72315,2764.8,2764.3,3.2078]
[1738770687702,3.7885,2765.0,2764.3,3.2078]
[1738770687899,0.72313,2764.8,2764.3,3.2078]
[1738770688098,4.51159,2765.0,2764.3,3.2078]
[1738770688397,3.7885,2765.0,2764.3,3.2078]
[1738770688801,0.00542309,2765.3,2764.7,3.2078]
[1738770689302,0.00542309,2765.3,2764.8,4.7214996]
[1738770689500,0.00542309,2765.3,2765.1,3.2078]
[1738770689701,0.00542309,2765.3,2764.8,7.9292996]
[1738770690001,0.00542309,2765.3,2765.2,3.2078]
[1738770690201,0.00542309,2765.3,2764.9,7.98134845]
[1738770690403,0.00542309,2765.3,2764.9,3.2078]
[1738770691097,0.00542309,2765.3,2765.2,3.2078]
[1738770691303,3.2078,2766.3,2765.2,3.2078]
[1738770691502,3.2078,2766.7,2765.7,3.2078]
[1738770691803,15.07193211,2767.1,2766.3,3.2078]
[1738770692306,15.07193211,2767.1,2766.4,4.75073234]
[1738770692497,0.00542309,2767.0,2766.4,0.00542309]
[1738770692897,0.00542309,2767.0,2766.6,3.2078]
[1738770693508,0.00542309,2767.0,2766.9,3.2078]
[1738770693703,7.93793211,2767.1,2766.9,3.2078]
[1738770693903,7.93793211,2767.1,2766.9,12.98877776]
[1738770694104,7.93793211,2767.1,2766.9,7.98877776]
[1738770694308,7.93793211,2767.1,2766.9,12.98877776]
[1738770694505,3.2078,2768.3,2767.0,0.9363]
[1738770694708,3.2078,2768.3,2767.3,3.2078]
[1738770694907,0.00542309,2767.9,2767.3,3.2078]
[1738770695105,0.00542309,2767.9,2767.4,4.7561874]
[1738770695407,0.00542309,2767.9,2767.0,3.7825]
[1738770695605,0.00542309,2767.9,2767.5,3.2078]
[1738770696107,0.00542309,2767.9,2767.8,3.2078]
[1738770696410,0.00542309,2767.9,2767.6,4.63931258]
[1738770696605,0.00542309,2767.9,2767.4,3.2078]
[1738770696999,0.00542309,2767.9,2767.5,4.6664718]
[1738770697205,0.00542309,2767.9,2767.8,3.2078]
[1738770697413,6.55830708,2769.2,2767.8,8.2078]
[1738770697703,6.55830708,2769.2,2767.9,3.2078]
[1738770697904,6.55830708,2769.2,2767.8,4.75136418]
[1738770697905,6.55830708,2769.2,2768.2,3.2078]
[1738770698609,0.00542309,2769.0,2768.4,0.00542309]
[1738770698805,0.00542309,2769.0,2768.8,3.2078]
[1738770699209,0.00542309,2769.0,2768.9,4.77629798]
[1738770699603,0.00542309,2769.0,2768.9,9.77629798]
[1738770700009,3.2078,2770.1,2768.9,9.77629798]
[1738770700304,3.2078,2770.1,2769.0,3.2078]
[1738770700705,3.35050708,2770.0,2768.7,3.2078]
[1738770700902,1.6729,2770.0,2769.1,3.2078]
[1738770701106,1.6729,2770.0,2769.4,3.2078]
[1738770701310,0.00542309,2769.6,2769.4,3.2078]
[1738770703504,0.00542309,2769.6,2768.5,0.5319]
[1738770703812,3.2078,2769.5,2768.9,3.2078]
[1738770704024,0.00542309,2769.6,2768.9,3.2078]
[1738770704507,0.00542309,2769.6,2769.0,4.69630874]
[1738770705105,0.00542309,2769.6,2768.9,3.2078]
[1738770705513,0.00542309,2769.6,2769.0,4.64789076]
[1738770705812,0.00542309,2769.6,2769.2,3.2078]
[1738770706214,0.00542309,2769.6,2769.5,3.2078]
[1738770706405,0.00542309,2769.6,2769.3,4.70114607]
[1738770706606,0.00542309,2769.6,2769.0,3.2078]
[1738770707319,0.00542309,2769.6,2769.3,3.2078]
[1738770708007,0.00542309,2769.6,2769.0,3.2078]
[1738770709512,3.35593017,2769.6,2769.0,3.2078]
[1738770709715,7.28029708,2769.2,2768.4,0.00542309]
[1738770709908,3.2078,2768.5,2768.4,0.00542309]
[1738770710908,8.92996,2768.5,2768.4,0.00542309]
[1738770711212,8.92997,2768.5,2767.7,3.2078]
[1738770711414,3.2078,2768.2,2767.2,3.2078]
[1738770711613,0.5475,2768.7,2765.4,16.687]
[1738770711614,3.2078,2767.7,2766.8,3.2078]
[1738770712313,0.00542309,2767.5,2767.0,0.00542309]
[1738770713213,3.2078,2767.1,2765.8,3.2078]
[1738770713415,3.35050708,2766.6,2765.5,3.2078]
[1738770714007,3.2078,2766.7,2765.8,3.2078]
[1738770714418,3.2078,2766.7,2765.9,4.63842073]
[1738770714616,3.2078,2766.7,2766.0,0.00542309]
[1738770714816,0.00542309,2766.5,2766.0,0.00542309]
[1738770716714,0.00542309,2766.5,2766.2,3.2078]
[1738770716914,0.00542309,2766.5,2766.0,0.00542309]
[1738770719726,3.21322309,2766.5,2766.0,0.00542309]
[1738770720021,3.2078,2766.2,2765.0,3.2078]
[1738770720323,3.2078,2765.9,2765.0,3.2078]
[1738770720515,3.35050708,2766.2,2765.0,3.2078]
[1738770720516,6.55830708,2766.2,2765.0,3.2078]
[1738770720818,3.2078,2765.3,2764.4,3.7862]
[1738770721014,3.2078,2765.0,2764.1,3.2078]
[1738770721411,0.5361,2765.5,2764.6,3.21322309]
[1738770721617,3.2078,2765.4,2764.6,3.21322309]
[1738770721921,0.00542309,2764.8,2764.6,3.21322309]
[1738770722515,0.00542309,2764.8,2764.7,4.80218883]
[1738770722821,0.00542309,2764.8,2764.6,3.21322309]
[1738770723019,0.00542309,2764.8,2764.6,0.00542309]
[1738770723420,3.2078,2764.7,2763.6,3.2078]
[1738770724123,3.21322309,2764.8,2763.6,3.2078]
[1738770725318,3.21322309,2764.8,2763.9,3.2078]
[1738770725519,0.00542309,2764.8,2764.5,3.2078]
[1738770725822,0.00542309,2764.8,2764.6,4.80356453]
[1738770726016,0.5464,2766.0,2764.6,4.80356453]
[1738770726218,0.5361,2766.2,2765.3,3.2078]
[1738770726415,3.88660708,2766.2,2764.8,3.2078]
[1738770726717,3.88660708,2766.2,2765.0,4.6793232]
[1738770726917,3.88660708,2766.2,2765.2,3.2078]
[1738770727114,3.88660708,2766.2,2765.3,0.00542309]
[1738770727115,0.00542309,2765.9,2765.3,0.00542309]
[1738770728526,0.72296,2765.4,2765.3,0.00542309]
[1738770729315,3.2078,2765.5,2765.3,0.00542309]
[1738770729525,0.561,2765.7,2765.3,0.00542309]
[1738770729725,0.00542309,2765.9,2765.3,0.00542309]
[1738770729924,3.2078,2765.6,2765.3,0.00542309]
[1738770730426,0.00542309,2765.9,2765.5,3.2078]
[1738770730625,0.00542309,2765.9,2765.3,0.00542309]
[1738770731132,3.2078,2766.8,2765.8,3.2078]
[1738770731427,3.2078,2766.8,2766.1,3.2078]
[1738770731831,3.2078,2766.8,2766.2,4.62910444]
[1738770732322,3.2078,2767.2,2766.4,3.2078]
[1738770732527,0.00542309,2766.8,2766.4,3.2078]
[1738770732725,0.00542309,2766.8,2766.2,4.62910444]
[1738770732726,0.00542309,2766.8,2766.7,3.2078]
[1738770733120,0.5604,2768.1,2766.7,12.82273992]
[1738770733322,0.5604,2768.1,2767.1,3.2078]
[1738770733528,3.2078,2768.5,2767.1,3.2078]
[1738770733725,3.2078,2768.5,2767.2,4.79424107]
[1738770734522,0.00542309,2768.1,2767.6,0.00542309]
[1738770735218,3.2078,2767.9,2767.6,0.00542309]
[1738770735627,0.00542309,2768.1,2767.6,0.00542309]
[1738770735827,0.00542309,2768.1,2767.7,7.920826]
[1738770736428,0.00542309,2768.1,2767.7,12.920826]
[1738770736630,4.96750708,2769.4,2768.0,3.2078]
[1738770736831,3.2078,2769.2,2768.0,3.2078]
[1738770737136,3.2078,2769.2,2768.1,4.74464106]
[1738770738028,0.00542309,2768.9,2768.1,4.74464106]
[1738770738234,3.21322309,2768.9,2768.0,3.2078]
[1738770738435,3.21322309,2768.9,2767.8,0.4413]
[1738770738737,3.21322309,2768.9,2768.3,3.2078]
[1738770738738,0.00542309,2768.9,2768.3,3.2078]
[1738770739031,0.00542309,2768.9,2768.4,4.68123468]
[1738770739335,0.00542309,2768.9,2767.8,0.4413]
[1738770739336,0.00542309,2768.9,2768.0,3.2078]
[1738770739527,0.00542309,2768.9,2768.3,3.2078]
[1738770739732,0.00542309,2768.9,2768.5,4.64825885]
[1738770739933,0.00542309,2768.9,2768.3,3.2078]
[1738770740241,3.2078,2770.5,2768.6,11.20656593]
[1738770740436,3.2078,2770.5,2769.3,3.2078]
[1738770740635,0.29669577,2770.8,2768.7,0.4413]
[1738770740636,6.55830708,2770.2,2769.0,3.2078]
[1738770740933,6.55830708,2770.2,2768.7,0.4413]
[1738770740934,3.2078,2769.9,2768.7,5.20117827]
[1738770741133,3.35050708,2769.8,2768.7,3.2078]
[1738770741334,3.92968,2769.6,2768.4,3.777]
[1738770741544,0.00542309,2769.5,2769.0,0.00542309]
[1738770741944,0.00542309,2769.5,2769.1,4.60800157]
[1738770742345,0.00542309,2769.5,2769.0,0.00542309]
[1738770743741,3.2078,2769.1,2769.0,0.00542309]
[1738770743945,3.21322309,2769.5,2769.0,0.00542309]
[1738770745048,0.00542309,2769.5,2769.1,4.72203605]
[1738770745243,0.00542309,2769.5,2769.0,0.00542309]
[1738770746347,0.00542309,2769.5,2769.1,7.95575922]
[1738770746846,0.00542309,2769.5,2769.0,0.00542309]
[1738770747447,0.00542309,2769.5,2769.4,3.2078]
[1738770748051,6.55830708,2771.0,2769.4,12.86379486]
[1738770748250,6.55830708,2771.0,2770.0,3.2078]
[1738770748447,3.2078,2770.7,2770.0,3.2078]
[1738770748750,6.55830708,2771.0,2769.8,3.2078]
[1738770748948,3.2078,2770.0,2769.0,0.00542309]
[1738770749147,0.72181,2769.9,2769.0,0.00542309]
[1738770749342,3.2078,2769.6,2769.0,0.00542309]
[1738770749550,3.35408889,2769.8,2769.0,0.00542309]
[1738770750148,3.2078,2769.7,2769.0,0.00542309]
[1738770750948,3.9298,2769.1,2769.0,0.00542309]
[1738770751261,4.07254708,2769.0,2768.1,3.2078]
[1738770751445,3.2078,2768.7,2768.1,3.2078]
[1738770751848,3.92992,2768.7,2767.6,3.2078]
[1738770752040,4.48980708,2769.0,2767.6,3.2078]
[1738770752041,3.2078,2768.4,2767.6,3.2078]
[1738770752241,3.2078,2768.4,2767.6,7.92572379]
[1738770752549,3.2078,2768.4,2767.9,0.00542309]
[1738770752754,0.00542309,2768.3,2767.9,0.00542309]
[1738770752949,0.00542309,2768.3,2768.2,3.2078]
[1738770753250,0.00542309,2768.3,2768.0,4.64695467]
[1738770753450,0.00542309,2768.3,2767.9,3.21322309]
[1738770753648,0.00542309,2768.3,2767.9,0.00542309]
[1738770755252,0.00542309,2768.3,2768.0,4.60626782]
[1738770756147,0.00542309,2768.3,2767.9,0.00542309]
[1738770756548,0.00542309,2768.3,2768.1,3.2078]
[1738770757156,0.00542309,2768.3,2767.9,0.00542309]
[1738770757356,0.72229,2768.0,2767.9,0.00542309]
[1738770757655,3.2078,2768.0,2766.7,0.5488]
[1738770757955,3.2078,2767.7,2766.8,4.78056447]
[1738770758153,3.2078,2767.7,2766.9,3.2078]
[1738770758454,3.93018,2767.7,2766.8,3.2078]
[1738770758652,3.93018,2767.7,2766.7,0.5488]
[1738770758653,0.72239,2767.6,2766.7,0.5488]
[1738770758845,3.93024,2767.4,2767.0,0.00542309]
[1738770759050,3.2078,2767.4,2767.0,0.00542309]
[1738770759349,0.5412,2767.6,2767.0,3.21322309]
[1738770759556,3.2078,2767.9,2767.3,3.2078]
[1738770760155,0.5619,2768.2,2767.6,3.2078]
[1738770760351,3.2078,2768.4,2767.9,3.2078]
[1738770760556,3.2078,2768.4,2767.7,4.74475954]
[1738770760952,3.2078,2768.4,2767.5,7.94591785]
[1738770761157,3.2078,2768.4,2767.5,3.2078]